Cogmind - Beta 11 @@@ ROGUE MODE // 2022.04.12 @ 22:51:06 Player: Rainynight Result: Smashed by cave-in Performance ------------- Evolutions (0) 0 Regions Visited (3) 600 Robots Destroyed (18) 90 Value Destroyed (358) 358 Prototype IDs (26) 520 Alien Tech Used (0) 0 Bonus (300) 300 TOTAL SCORE: 1868 Bonus ------- Aligned with FarCom 300 Cogmind --------- Core Integrity 0/250 Matter 300/300 Energy 100/100 System Corruption 19% Temperature Cool (0) Movement Core (50) Location -10/Exiles Parts ------- > --- POWER (1) -------- (None) > --- PROPULSION (2) --- (None) > --- UTILITY (2) ------ (None) > --- WEAPON (2) ------- (None) > --- INVENTORY (5) ---- Lightpack 2.0 Small Battery (100) Improved Terrain Scanner Peak State ------------ > --- POWER ------------ Ion Engine > --- PROPULSION ------- Hover Unit Hover Unit > --- UTILITY ---------- Experimental Sensor Array Signal Interpreter > --- WEAPON ----------- Hammer > --- INVENTORY -------- Lightpack 2.0 Small Battery Improved Terrain Scanner [Rating: 17] Favorites ----------- Power Ion Engine Engine Ion Engine Propulsion Hover Unit Leg Aluminum Leg Wheel Wheel Hover Unit Hover Unit Utility Small Storage Unit Device Improved Terrain Scanner Storage Small Storage Unit Processor Signal Interpreter Weapon Hammer Energy Gun EM Pulse Gun Ballistic Gun Light Assault Rifle Impact Weapon Hammer Build | -11 -10 -10 -10 ------- Run | Scr Mat Min Exi Slots Evolved . | . . . . Power . | . . . . Propulsion . | . . . . Utility . | . . . . Weapon . | . . . . Parts Attached 26 | 3 21 2 . Power 4 | . 4 . . Engine 4 | . 4 . . Core . | . . . . Reactor . | . . . . Propulsion 12 | 2 10 . . Treads . | . . . . Leg 6 | . 6 . . Wheel 2 | 2 . . . Hover 4 | . 4 . . Flight . | . . . . Utility 4 | 1 2 1 . Device 3 | 1 1 1 . Storage . | . . . . Processor 1 | . 1 . . Hackware . | . . . . Protection . | . . . . Artifact . | . . . . Weapon 6 | . 5 1 . Energy Gun 4 | . 4 . . Energy Cannon . | . . . . Ballistic Gun 1 | . 1 . . Ballistic Cannon . | . . . . Launcher . | . . . . Special Weapon . | . . . . Impact Weapon 1 | . . 1 . Slashing Weapon . | . . . . Piercing Weapon . | . . . . Special Melee Weapon . | . . . . Unidentified Prototypes 1 | . . 1 . Corrupted Parts 2 | . 2 . . System Corruption 8 | . 8 . . Parts Lost 7 | . 1 . 6 Power 1 | . . . 1 Propulsion 2 | . . . 2 Utility 3 | . 1 . 2 Weapon 1 | . . . 1 Highest Loss Streak 4 | . 1 . 4 To Critical Strikes . | . . . . Average Slot Usage (%) 81 | . 86 83 74 Engine 12 | . 11 14 13 Leg 7 | . 14 . . Wheel 5 | . 9 . . Hover 12 | . 3 28 23 Device 9 | . 8 14 11 Storage 7 | . 13 . . Processor 5 | . . 14 11 Energy Gun 8 | . 15 . . Ballistic Gun 5 | . 9 . . Impact Weapon 6 | . . 12 14 Naked Turns . | . . . . Heaviest Build 16 | 14 16 8 8 Greatest Support 20 | 20 20 12 12 Greatest Overweight (x) 2 | . 2 . 2 Average Overweight (x) . | . . . . Largest Inventory Capacity 8 | 8 8 5 5 Average Capacity 6 | 8 7 5 5 Most Carried 8 | 7 8 5 5 Average Carried 6 | 6 7 4 4 Final Capacity 8 | 8 5 5 5 Final Carried 7 | 7 3 5 5 Class Distribution -------------------- 96% | Mutant 3% | Scavenger-Mutant Dominant Class ---------------- Mutant | -10/Materials Mutant | -10/Mines Mutant | -10/Exiles Resources | -11 -10 -10 -10 ----------- Run | Scr Mat Min Exi Matter Collected 559 | 242 249 61 7 Remotely . | . . . . Salvage Created 615 | 146 382 25 62 Parts 44 | 16 28 . . Haulers Intercepted . | . . . . Recyclers Shooed 1 | 1 . . . Parts Field Recycled . | . . . . Retrieved Matter . | . . . . Parts Self-Destructed . | . . . . Prevented . | . . . . Kills | -11 -10 -10 -10 ------- Run | Scr Mat Min Exi Combat Hostiles Destroyed 11 | . 7 . 4 Melee 4 | . . . 4 Guns 7 | . 7 . . Classes Destroyed 6 | 2 3 . 1 Worker 1 | . 1 . . Tunneler 6 | 5 . 1 . Recycler 1 | 1 . . . Watcher 3 | . 3 . . Grunt 7 | . 7 . . Assembled 4 | . . . 4 Best Kill Streak 4 | 4 4 1 4 Combat Bots Only 4 | . 3 . 4 Max Kills in Single Turn 1 | 1 1 1 1 Gunslinging . | . . . . Exploded . | . . . . Melee 1 | . . . 1 Uniques/NPCs Destroyed . | . . . . Combat | -11 -10 -10 -10 -------- Run | Scr Mat Min Exi Damage Taken 803 | . 301 . 502 Core 250 | . 10 . 240 Absorbed by Shields . | . . . . Core Remaining (%) 100 | 100 . . . Volleys Fired 59 | 15 44 . . Largest 2 | 2 2 . . Hottest 105 | 60 105 . . Shots Fired 116 | 29 87 . . Gun 116 | 29 87 . . Cannon . | . . . . Launcher . | . . . . Special . | . . . . Kinetic 53 | 15 38 . . Thermal 25 | 14 11 . . Explosive . | . . . . Electromagnetic 38 | . 38 . . Robot Hit Streak 8 | 4 8 . . Robot Miss Streak 3 | 3 3 . . Penetration Max . | . . . . Secondary Targets 1 | . 1 . . Max Gunslinging Chain 1 | . 1 . . Shots Hit Robots 80 | 17 56 2 5 Core Hits 29 | 7 18 . 4 Critical Kills 2 | . . . 2 Critical Parts Destroyed . | . . . . Critical Strikes 2 | . . . 2 Smash 2 | . . . 2 Melee Attacks 34 | . . 7 27 Impact 34 | . . 7 27 Slashing . | . . . . Piercing . | . . . . Sneak Attacks 2 | . . 2 . Combat Hostiles . | . . . . Follow-up Attacks . | . . . . Damage Inflicted 1057 | 206 642 91 118 Guns 848 | 206 642 . . Cannons . | . . . . Explosions . | . . . . Melee 209 | . . 91 118 Ramming . | . . . . Kinetic 329 | 107 222 . . Thermal 170 | 99 71 . . Explosive . | . . . . Electromagnetic 349 | . 349 . . Impact 209 | . . 91 118 Slashing . | . . . . Piercing . | . . . . Highest Corruption 14 | . 8 8 14 Average Corruption 7 | . 4 8 8 Corruption Purged . | . . . . Corruption Blocked . | . . . . Effects 15 | . 3 4 8 Message Errors 3 | . 1 . 2 Matter Fused 4 | . 1 1 2 Heat Flow Errors 1 | . . . 1 Energy Discharges 3 | . . 2 1 Data Loss (minor) 3 | . 1 1 1 Alerts 1 | . . . 1 Overload Shots . | . . . . Overflow Damage 29 | . . 29 . Projectiles . | . . . . Explosions . | . . . . Melee 29 | . . 29 . Knockbacks . | . . . . Impact . | . . . . Kinetic . | . . . . Secondary . | . . . . Self-Inflicted Damage . | . . . . Shots . | . . . . Rammed . | . . . . Targets Rammed . | . . . . Kicked . | . . . . Crushed . | . . . . Highest Temperature 263 | 2 180 . 263 Average Temperature 64 | 2 58 . 104 Received Heat Transfer 305 | . 165 . 140 Siege Activations . | . . . . Robots Corrupted . | . . . . Combat Hostiles . | . . . . Parts Fried 5 | . 1 4 . Impact Corruptions 2 | . . 2 . Robots Melted . | . . . . Combat Hostiles . | . . . . Parts Melted 2 | 1 1 . . Heat Transferred 387 | 225 162 . . Parts Sabotaged . | . . . . Parts Stolen . | . . . . Parts Stripped . | . . . . Power Chain Reactions . | . . . . Missiles Intercepted . | . . . . Alert | -11 -10 -10 -10 ------- Run | Scr Mat Min Exi Peak Influence 240 | 30 240 23 . Initial 19 | . 19 15 . Average 102 | 12 137 17 . Maximum Alert Level 1 | . 1 . . Low Security (%) 77 | 100 68 100 . Level 1 22 | . 31 . . Level 2 . | . . . . Level 3 . | . . . . Level 4 . | . . . . Level 5 . | . . . . High Security . | . . . . Max Security . | . . . . Squads Dispatched 2 | . 2 . . Investigation 1 | . 1 . . Extermination . | . . . . Reinforcement 1 | . 1 . . Assault . | . . . . Garrison . | . . . . Intercept . | . . . . Searches Triggered . | . . . . Construction Impeded . | . . . . Haulers Reinforced . | . . . . Active Scanning Responses . | . . . . Cargo Convoy Interrupts . | . . . . Stealth | -11 -10 -10 -10 --------- Run | Scr Mat Min Exi Distress Signals 1 | . 1 . . Communications Jammed . | . . . . Distress Signals . | . . . . Times Spotted 20 | . 11 . 9 Peak Tracking Total 11 | . 3 . 11 Tactical Retreats 1 | . . . 1 Traps | -11 -10 -10 -10 ------- Run | Scr Mat Min Exi Traps Triggered . | . . . . Indirectly . | . . . . Trap Hack Attempts . | . . . . Triggered . | . . . . Disarmed . | . . . . Reprogrammed . | . . . . Reused . | . . . . Traps Extracted . | . . . . Installed 3 | . . 3 . Triggered . | . . . . Machines | -11 -10 -10 -10 ---------- Run | Scr Mat Min Exi Machines Disabled 2 | . 1 . 1 Max in Single Turn 1 | . 1 . 1 Machines Sabotaged . | . . . . Garrisons Compromised . | . . . . Overloaded Fab Kills . | . . . . Hacking | -11 -10 -10 -10 --------- Run | Scr Mat Min Exi Machines Accessed 6 | . 1 . 5 Terminals 1 | . 1 . . Fabricators . | . . . . Repair Stations . | . . . . Recycling Units . | . . . . Scanalyzers . | . . . . Garrison Access . | . . . . Total Hacks 54 | . 4 . 50 Successful 51 | . 1 . 50 Failed 3 | . 3 . . Catastrophic . | . . . . Database Lockouts . | . . . . Manual 1 | . . . 1 Terminals 4 | . 4 . . Fabricators . | . . . . Repair Stations . | . . . . Recycling Units . | . . . . Scanalyzers . | . . . . Garrison Access . | . . . . Terminal Hacks 51 | . 1 . 50 Record 49 | . . . 49 Prototype ID Bank 1 | . 1 . . EX-Prototype ID Bank 1 | . . . 1 Fabricator Hacks . | . . . . Repair Station Hacks . | . . . . Recycling Unit Hacks . | . . . . Scanalyzer . | . . . . Garrison Access Hacks . | . . . . Unauthorized Hacks . | . . . . Terminals . | . . . . Fabricators . | . . . . Repair Stations . | . . . . Recycling Units . | . . . . Scanalyzers . | . . . . Garrison Access . | . . . . Data Cores Recovered . | . . . . Used . | . . . . Hacking Detections 1 | . 1 . . Full Trace Events . | . . . . Feedback Events . | . . . . Feedback Blocked . | . . . . Robot Schematics Acquired . | . . . . Robots Built . | . . . . Authchips . | . . . . Time . | . . . . Total Robot Build Rating . | . . . . Part Schematics Acquired . | . . . . Parts Built . | . . . . Authchips . | . . . . Time . | . . . . Total Part Build Rating . | . . . . Parts Repaired . | . . . . Time . | . . . . Parts Recycled . | . . . . Recycled Matter . | . . . . Retrieved Matter . | . . . . Retrieved Components . | . . . . Parts Scanalyzed . | . . . . Part Schematics Acquired . | . . . . Parts Damaged . | . . . . Bothacking | -11 -10 -10 -10 ------------ Run | Scr Mat Min Exi Used RIF Installer . | . . . . Robots Hacked . | . . . . Non-combat . | . . . . Combat . | . . . . Robot Hacks Applied . | . . . . Relay Couplers Released . | . . . . Fabnet Peak Effective % . | . . . . Robots Rewired . | . . . . Allies Hacked . | . . . . Hacks Repelled . | . . . . Allies | -11 -10 -10 -10 -------- Run | Scr Mat Min Exi Total Allies . | . . . . Largest Group . | . . . . Highest-Rated Group . | . . . . Highest-Rated Ally . | . . . . Total Orders . | . . . . Ally Attacks . | . . . . Total Damage . | . . . . Kills . | . . . . Allies Corrupted . | . . . . Allies Melted . | . . . . Intel | -11 -10 -10 -10 ------- Run | Scr Mat Min Exi Robot Analysis Total . | . . . . Derelict Logs Recovered . | . . . . Drone Launches . | . . . . Drone Recoveries . | . . . . Exploration | -11 -10 -10 -10 ------------- Run | Scr Mat Min Exi Turns Passed 878 | 82 428 88 280 Spaces Moved 757 | 24 276 99 358 Core 3 | . . . 3 Treads . | . . . . Legs 108 | 12 96 . . Wheels 137 | 12 125 . . Hover 509 | . 55 99 355 Flight . | . . . . Fastest Speed 56 | 80 56 56 56 Average Speed 70 | 100 90 56 56 Slowest Speed 185 | 120 185 56 150 Overloaded Moves . | . . . . Propulsion Burnouts . | . . . . Robots Hopped . | . . . . Cave-ins Triggered 3 | . . . 3 Exploration Rate (%) 32 | 3 30 29 68 Regions Visited 3 Branch Regions 2 Pre-discovered Areas 1 | . . . 1 Known Exits Taken 2 | . 1 1 . Unknown Exits Taken 1 | 1 . . . Scrap Searched 2 | . . 2 . Spaces Dug 11 | . . 1 10 Terrain Destroyed 11 | . . 1 10 Melee 11 | . . 1 10 Projectile . | . . . . AOE . | . . . . Terrain Rammed . | . . . . Walls Destroyed . | . . . . Machines Disabled . | . . . . Actions | -11 -10 -10 -10 --------- Run | Scr Mat Min Exi Total 941 | 53 379 118 391 Wait 28 | 9 14 3 2 Move 753 | 23 275 98 357 Hop . | . . . . Pick Up 7 | 1 2 3 1 Fast Attach 14 | 1 11 2 . Attach 7 | 2 5 . . Detach 4 | 2 2 . . Swap 5 | . 5 . . Drop 26 | . 21 2 3 Fire 59 | 15 44 . . Melee 34 | . . 7 27 Ram . | . . . . Kick . | . . . . Crush . | . . . . Escape Stasis 1 | . . . 1 Rewire . | . . . . Trap 3 | . . 3 . Miscellaneous . | . . . . Route ------- -11/Scrapyard -10/Materials -10/Mines -10/Exiles History --------- Turn | Location | Event 13 | -11/Scrapyard | Discovered new exit (range 2) 83 | -11/Scrapyard | Entered Materials 462 | -10/Materials | Discovered new exit (range 7) 510 | -10/Materials | Identified exit to Mines 511 | -10/Materials | Entered Mines 532 | -10/Mines | Found a damaged Exp. Sensor Array with a note attached 534 | -10/Mines | Found Prototype Device 534 | -10/Mines | Identified Exp. Sensor Array 553 | -10/Mines | Found a hidden stash of uninstalled traps 596 | -10/Mines | Deemed a non-threat by the Exiles lab entrance 596 | -10/Mines | Discovered new exit (range 5) 598 | -10/Mines | Identified exit to Exiles 599 | -10/Mines | Entered Exiles 614 | -10/Exiles | Met 8R-AWN 623 | -10/Exiles | Met EX-HEX 633 | -10/Exiles | Build established: Mutant 639 | -10/Exiles | Met EX-BIN 647 | -10/Exiles | Aligned with FarCom system 648 | -10/Exiles | Given EX-Vault access code 721 | -10/Exiles | Opened EX-Vault 729 | -10/Exiles | Found Lightpack 2.0 742 | -10/Exiles | Warned to stay clear of 0b10 Research branches 756 | -10/Exiles | Met EX-DEC 760 | -10/Exiles | Learned location of Zion (-7) 789 | -10/Exiles | Visited The Gauntlet 805 | -10/Exiles | Attacked by the Exiles 825 | -10/Exiles | Crushed by falling debris 863 | -10/Exiles | Core integrity fell below 50% 870 | -10/Exiles | Lost 4 parts (2n2u) 878 | -10/Exiles | Crushed by falling debris 878 | -10/Exiles | System corruption reached 10% 880 | -10/Exiles | Crushed by falling debris 880 | -10/Exiles | Smashed by cave-in Last Messages --------------- 00833_ Hover Unit destroyed. 00834_ System corrupted: IFF burst signal emitted. 00836_ Exp. Sensor Array destroyed. 00839_ Hover Unit destroyed. 00860_ as-23886 destroyed. 00861_ System corrupted: Matter fused (-5). 00868_ as-36842 suffers critical hit (Smash). 00868_ as-36842 destroyed. 00869_ Acquired 7 matter. 00871_ as-12098 suffers critical hit (Smash). 00871_ as-12098 destroyed. 00877_ as-74558 destroyed. 00878_ The unstable cave ceiling collapses. 00878_ Crushed by falling debris. 00878_ Ion Engine destroyed. 00878_ System corrupted by crushing effect (+5). 00880_ The unstable cave ceiling collapses. 00880_ Crushed by falling debris. 00880_ Hammer destroyed. 00880_ System corrupted by crushing effect (+5). Map ----- +----------------------------------------------------+ | ???##" ######""" | | ???#"" ""##????#####""" | | ??##""" """##?????????##""" | | ??#""" """##???????????#"""" | | ??#""" ""#????????????#"" | | ??#"" ###?####???????""" | | ??#""" ## ##????? | | ??#"" "???? | | ??##"" ??? | | ???#"""" ?? | | ???## ???? " | | ????#" " ?????"" """ | | ????#"""" ""???????"" " " ""#" | | ????#"" ""#?????????##""" """##""""" | | ????#" """"##????????????#""????###### | | ????#""" """#?????????????????????????? | | ????## ""##?????????????????????????? | | ?????#"" """##??????????????????????????? | | ?????##""" ##???????????????????????????? | | ??????##"""" ##????????????????????????????? | | ???????### #?????????????????????????????? | | ?????????##### ##?????????????????????????????? | | ?????????????## #??????????????????????????????? | | ??????????????# #??????????????????????????????? | | ??????????????# #?????###??????????????????????? | | ??????????????# #????##@#??????????????????????? | | ??????????????# #???##a##??????????????????????? | | ??????????????# #??##a##???????????????????????? | | ??????????????# #??#a##????????????????????????? | | ??????????????# #??# ##????????????????????????? | | ??????????????# #??## #????????????????????????? | | ??????????????# #??# ##????????????????????????? | | ????##"""###### #### #########?????????????????? | | ???""" """""" """" ""#"""""#?????????????????? | | ??""" "#"" ""#?????????????????? | | " ""#?????????????????? | | " " "#?????????????????? | | " """#?????????????????? | | "" #"" ""#?????????????????? | | ?"""" " """" """"" """""#?????????????????? | | ???###"""########"""#########?#??????????????????? | | ?????" ????????"" ""???????????????????????????? | | ??????????????#"" """???????????????????????????? | | ??????????????#"""""""#??????????????????????????? | | ???????????????"" """"???????????????????????????? | | ????????????????""""?????????????????????????????? | | ?????????????????#???????????????????????????????? | | ?????????????????????????????????????????????????? | | ?????????????????????????????????????????????????? | | ?????????????????????????????????????????????????? | +----------------------------------------------------+ Best States ------------- Heat Dissipation 25 Energy Generation 10 Energy Capacity 250 Matter Stores 300 Matter Capacity 300 Sight Range 16 Robot Scan Range 20 Terrain Scan Range 16 Terrain Scan Density 10 Evasion (%) 55 Item Schematics ----------------- None Robot Schematics ------------------ None Fabricated ------------ Nothing Alien Tech Used ----------------- None Achievements -------------- None Challenges ------------ None Game ------ Seed BarrageHybridCalibrator Manual? 0 Play Time 00:14:01 Cumulative 76.0 hours Start 2022.04.12 @ 22:38:17 End 2022.04.12 @ 22:51:06 Sessions 1 Manual Loads 0 Difficulty Rogue Special Mode None Game No. 86 Rogue 86 Adventurer 0 Explorer 0 Win Type - Total 0 Types 0/0/0/0/0/0/0/0/0 Lore% 47 Gallery% 52 Achievement% 39 Wizard Run 0 Options --------- ASCII 1 Keyboard 1 Movement Numpad Keybinds 0 Fullscreen 1 Font 18/X11 Map View 76x50 Tactical HUD 1 Map Filters NONE Filters NONE Steam 1 RUN: b023e46f-8dc3-4cf2-806d-6276f577d1cd